Cogmind - Beta 14 @@@ ROGUE MODE // 2024.09.14 @ 02:29:45 Player: Maulwurf Result: Self-destructed Performance ------------- Evolutions (1) 500 Regions Visited (3) 600 Robots Destroyed (5) 25 Value Destroyed (70) 70 Prototype IDs (0) 0 Alien Tech Used (0) 0 Bonus (174) 174 TOTAL SCORE: 1369 Bonus ------- Follower Combat Kills 174 Cogmind --------- Core Integrity 153/400 Matter 172/300 Energy 100/100 System Corruption 41% Temperature Cool (0) Movement Treading (160) Location -9/Materials Parts ------- > --- POWER (1) -------- (None) > --- PROPULSION (3) --- Light Treads Light Treads > --- UTILITY (3) ------ (None) > --- WEAPON (2) ------- (None) > --- INVENTORY (5) ---- (None) Peak State ------------ > --- POWER ------------ Ion Engine > --- PROPULSION ------- Aluminum Leg Aluminum Leg > --- UTILITY ---------- Small Storage Unit Seismic Detector > --- WEAPON ----------- Small Laser Assault Rifle > --- INVENTORY -------- Light Ion Engine Light Treads Light Treads Sensor Array Improved Terrain Scanner Light Assault Rifle Grenade Launcher Mining Laser [Rating: 8] Favorites ----------- Power Ion Engine Engine Ion Engine Propulsion Aluminum Leg Treads Light Treads Leg Aluminum Leg Utility Small Storage Unit Device Seismic Detector Storage Small Storage Unit Weapon Assault Rifle Energy Gun Small Laser Ballistic Gun Assault Rifle Launcher Grenade Launcher Special Weapon Mining Laser Build | -11 -10 -10 -9 ------- Run | Yrd Mat Min Mat Slots Evolved 2 | . . . 2 Power . | . . . . Propulsion 1 | . . . 1 Utility 1 | . . . 1 Weapon . | . . . . Parts Attached 16 | 8 . . 8 Power 2 | 1 . . 1 Engine 2 | 1 . . 1 Core . | . . . . Reactor . | . . . . Propulsion 4 | 2 . . 2 Treads 2 | . . . 2 Leg 2 | 2 . . . Wheel . | . . . . Hover . | . . . . Flight . | . . . . Utility 3 | 2 . . 1 Device 2 | 1 . . 1 Storage 1 | 1 . . . Processor . | . . . . Hackware . | . . . . Protection . | . . . . Artifact . | . . . . Weapon 7 | 3 . . 4 Energy Gun 1 | 1 . . . Energy Cannon . | . . . . Ballistic Gun 4 | 2 . . 2 Ballistic Cannon . | . . . . Launcher 1 | . . . 1 Special Weapon 1 | . . . 1 Impact Weapon . | . . . . Slashing Weapon . | . . . . Piercing Weapon . | . . . . Special Melee Weapon . | . . . . Unidentified Prototypes . | . . . . Parts Lost 12 | . . . 12 Power 2 | . . . 2 Propulsion 2 | . . . 2 Utility 3 | . . . 3 Weapon 5 | . . . 5 Highest Loss Streak 5 | . . . 5 To Critical Strikes . | . . . . Average Slot Usage (%) 42 | . 100 100 30 Engine 4 | . 14 14 2 Treads 7 | . . . 9 Leg 9 | . 28 28 5 Device 5 | . 14 14 4 Storage 5 | . 14 14 3 Energy Gun 3 | . 14 14 1 Ballistic Gun 5 | . 14 14 3 Peak Build Rating 8 | 7 7 7 8 Average Rating 3 | 4 7 7 2 On Entrance 5 | . 7 7 7 Naked Turns 493 | . . . 493 Heaviest Build 15 | 14 14 14 15 Greatest Support 20 | 20 20 20 20 Greatest Overweight (x) 1 | 1 . . . Average Overweight (x) . | . . . . Largest Inventory Capacity 8 | 8 8 8 8 Average Capacity 6 | 7 8 8 5 Most Carried 8 | 7 7 7 8 Average Carried 2 | 4 6 7 1 Final Capacity 8 | 8 8 8 5 Final Carried 7 | 6 7 7 . Class Distribution -------------------- 100% | Mutant Dominant Class ---------------- Mutant | -10/Materials Mutant | -10/Mines Mutant | -9/Materials Resources | -11 -10 -10 -9 ----------- Run | Yrd Mat Min Mat Matter Collected 321 | 283 . 22 16 Remotely . | . . . . Salvage Created 199 | 110 29 . 60 Parts 15 | 7 5 . 3 Haulers Intercepted . | . . . . Recyclers Shooed . | . . . . Parts Field Recycled . | . . . . Retrieved Matter . | . . . . Parts Self-Destructed . | . . . . Prevented . | . . . . Kills | -11 -10 -10 -9 ------- Run | Yrd Mat Min Mat Combat Hostiles Destroyed 1 | . . . 1 Guns 1 | . . . 1 Classes Destroyed 4 | 2 1 . 1 Builder 1 | . 1 . . Tunneler 2 | 2 . . . Recycler 1 | 1 . . . Sentry 1 | . . . 1 Best Kill Streak 2 | 2 1 . 1 Combat Bots Only 1 | . . . 1 Max Kills in Single Turn 1 | 1 1 . 1 Gunslinging . | . . . . Exploded . | . . . . Melee . | . . . . Uniques/NPCs Destroyed . | . . . . Combat | -11 -10 -10 -9 -------- Run | Yrd Mat Min Mat Hostile Shots Fired 6 | . . 1 5 Missed 3 | . . 1 2 Damage Taken 1257 | . . . 1257 Core 247 | . . . 247 Absorbed by Shields . | . . . . Core Remaining (%) 100 | 100 . 100 . Volleys Fired 41 | 5 4 . 32 Largest 2 | 2 2 . 2 Hottest 100 | 60 60 . 100 Shots Fired 56 | 10 8 . 38 Gun 30 | 10 8 . 12 Cannon . | . . . . Launcher 1 | . . . 1 Special 25 | . . . 25 Kinetic 18 | 5 4 . 9 Thermal 37 | 5 4 . 28 Explosive 1 | . . . 1 Electromagnetic . | . . . . Robot Hit Streak 3 | 2 3 . 3 Robot Miss Streak 2 | 1 2 . 2 Penetration Max . | . . . . Secondary Targets . | . . . . Shots Hit Robots 14 | 7 4 . 3 Core Hits 8 | 4 2 . 2 Critical Kills . | . . . . Critical Parts Destroyed . | . . . . Critical Strikes . | . . . . Melee Attacks . | . . . . Impact . | . . . . Slashing . | . . . . Piercing . | . . . . Sneak Attacks . | . . . . Combat Hostiles . | . . . . Follow-up Attacks . | . . . . Damage Inflicted 194 | 96 56 . 42 Guns 180 | 91 56 . 33 Cannons . | . . . . Explosions . | . . . . Melee . | . . . . Ramming 14 | 5 . . 9 Kinetic 107 | 60 36 . 11 Thermal 73 | 31 20 . 22 Explosive . | . . . . Electromagnetic . | . . . . Impact . | . . . . Slashing . | . . . . Piercing . | . . . . Highest Corruption 41 | . 2 2 41 Average Corruption 32 | . 2 2 37 Corruption Purged . | . . . . Corruption Blocked . | . . . . Effects 67 | . . 1 66 Message Errors 24 | . . 1 23 Matter Fused 11 | . . . 11 Heat Flow Errors 10 | . . . 10 Energy Discharges 10 | . . . 10 Data Loss (minor) 8 | . . . 8 Data Loss (major) 2 | . . . 2 Alerts 2 | . . . 2 Overload Shots . | . . . . Overflow Damage . | . . . . Projectiles . | . . . . Explosions . | . . . . Melee . | . . . . Knockbacks . | . . . . Impact . | . . . . Kinetic . | . . . . Secondary . | . . . . Self-Inflicted Damage 38 | . . . 38 Shots 1 | . . . 1 Rammed . | . . . . Targets Rammed 2 | 1 . . 1 Kicked 2 | 1 . . 1 Crushed . | . . . . Highest Temperature 204 | . . . 204 Average Temperature 39 | . . . 39 Received Heat Transfer 6 | . . . 6 Siege Activations . | . . . . Robots Corrupted . | . . . . Combat Hostiles . | . . . . Parts Fried . | . . . . Impact Corruptions . | . . . . Robots Melted . | . . . . Combat Hostiles . | . . . . Parts Melted . | . . . . Heat Transferred 175 | 75 50 . 50 Parts Sabotaged . | . . . . Parts Stolen . | . . . . Parts Stripped . | . . . . Power Chain Reactions . | . . . . Alert | -11 -10 -10 -9 ------- Run | Yrd Mat Min Mat Peak Influence 163 | 15 19 68 163 Initial 26 | . 9 7 26 Average 20 | 6 13 21 21 Maximum Alert Level . | . . . . Low Security (%) 100 | 100 100 100 100 Level 1 . | . . . . Level 2 . | . . . . Level 3 . | . . . . Level 4 . | . . . . Level 5 . | . . . . High Security . | . . . . Max Security . | . . . . Squads Dispatched 1 | . . . 1 Investigation 1 | . . . 1 Extermination . | . . . . Reinforcement . | . . . . Assault . | . . . . Garrison . | . . . . Intercept . | . . . . Searches Triggered . | . . . . Construction Impeded . | . . . . Haulers Reinforced . | . . . . Active Scanning Responses . | . . . . Cargo Convoy Interrupts . | . . . . Stealth | -11 -10 -10 -9 --------- Run | Yrd Mat Min Mat Distress Signals 2 | . . 1 1 Communications Jammed . | . . . . Distress Signals . | . . . . Times Spotted 8 | . 1 2 5 Peak Tracking Total 4 | . 1 2 4 Tactical Retreats 1 | . . . 1 Traps | -11 -10 -10 -9 ------- Run | Yrd Mat Min Mat Traps Triggered 2 | . 1 . 1 Indirectly . | . . . . Trap Hack Attempts . | . . . . Triggered . | . . . . Disarmed . | . . . . Reprogrammed . | . . . . Reused . | . . . . Traps Extracted . | . . . . Installed . | . . . . Triggered . | . . . . Machines | -11 -10 -10 -9 ---------- Run | Yrd Mat Min Mat Machines Disabled . | . . . . Max in Single Turn . | . . . . Machines Repaired . | . . . . Machines Dismantled . | . . . . Machines Sabotaged . | . . . . Overloaded Fab Kills . | . . . . Hacking | -11 -10 -10 -9 --------- Run | Yrd Mat Min Mat Machines Accessed 3 | . 2 . 1 Terminals 3 | . 2 . 1 Fabricators . | . . . . Repair Stations . | . . . . Recycling Units . | . . . . Scanalyzers . | . . . . Garrison Access . | . . . . Total Hacks 4 | . 3 . 1 Successful 2 | . 2 . . Failed 2 | . 1 . 1 Catastrophic 1 | . . . 1 Database Lockouts . | . . . . Manual 1 | . . . 1 Terminals 4 | . 3 . 1 Fabricators . | . . . . Repair Stations . | . . . . Recycling Units . | . . . . Scanalyzers . | . . . . Garrison Access . | . . . . Terminal Hacks 2 | . 2 . . Zone Layout 2 | . 2 . . Fabricator Hacks . | . . . . Repair Station Hacks . | . . . . Recycling Unit Hacks . | . . . . Scanalyzer . | . . . . Garrison Access Hacks . | . . . . Unauthorized Hacks . | . . . . Terminals . | . . . . Fabricators . | . . . . Repair Stations . | . . . . Recycling Units . | . . . . Scanalyzers . | . . . . Garrison Access . | . . . . Data Cores Recovered . | . . . . Used . | . . . . Hacking Detections 2 | . 1 . 1 Full Trace Events 1 | . 1 . . Feedback Events . | . . . . Feedback Blocked . | . . . . Robot Schematics Acquired . | . . . . Robots Built . | . . . . Authchips . | . . . . Time . | . . . . Total Robot Build Rating . | . . . . Part Schematics Acquired . | . . . . Parts Built . | . . . . Authchips . | . . . . Time . | . . . . Total Part Build Rating . | . . . . Parts Repaired . | . . . . Time . | . . . . Parts Recycled . | . . . . Recycled Matter . | . . . . Retrieved Matter . | . . . . Retrieved Components . | . . . . Parts Scanalyzed . | . . . . Part Schematics Acquired . | . . . . Parts Damaged . | . . . . Bothacking | -11 -10 -10 -9 ------------ Run | Yrd Mat Min Mat Used RIF Installer . | . . . . Robots Hacked . | . . . . Non-combat . | . . . . Combat . | . . . . Robot Hacks Applied . | . . . . Relay Couplers Released . | . . . . Fabnet Peak Effective % . | . . . . Robots Rewired . | . . . . Allies Hacked . | . . . . Hacks Repelled . | . . . . Allies | -11 -10 -10 -9 -------- Run | Yrd Mat Min Mat Total Allies 3 | . . 3 . Largest Group 3 | . . 3 1 Highest-Rated Group 40 | . . 40 16 Highest-Rated Ally 16 | . . 16 16 Total Orders . | . . . . Ally Attacks 41 | . . 25 16 Total Damage 413 | . . 240 173 Kills 6 | . . 3 3 Allies Corrupted . | . . . . Allies Melted . | . . . . Intel | -11 -10 -10 -9 ------- Run | Yrd Mat Min Mat Robot Analysis Total . | . . . . Derelict Logs Recovered 1 | . . 1 . Drone Launches . | . . . . Drone Recoveries . | . . . . Exploration | -11 -10 -10 -9 ------------- Run | Yrd Mat Min Mat Turns Passed 2269 | 113 204 180 1772 Spaces Moved 456 | 63 93 108 192 Core 17 | 8 . . 9 Treads . | . . . . Legs 439 | 55 93 108 183 Wheels . | . . . . Hover . | . . . . Flight . | . . . . Fastest Speed 50 | 50 120 120 50 Average Speed 117 | 113 120 120 116 Slowest Speed 190 | 190 120 120 120 Overloaded Moves . | . . . . Propulsion Burnouts . | . . . . Robots Hopped . | . . . . Cave-ins Triggered 9 | . . . 9 Exploration Rate (%) 17 | 4 27 24 14 Regions Visited 3 Branch Regions 1 Pre-discovered Areas . | . . . . Known Exits Taken . | . . . . Unknown Exits Taken 3 | 1 1 1 . Scrap Searched . | . . . . Spaces Dug 34 | . . . 34 Terrain Destroyed 34 | . . . 34 Melee . | . . . . Projectile 25 | . . . 25 AOE 9 | . . . 9 Terrain Rammed . | . . . . Walls Destroyed . | . . . . Machines Disabled . | . . . . Actions | -11 -10 -10 -9 --------- Run | Yrd Mat Min Mat Total 2081 | 94 177 158 1652 Wait 1553 | 5 80 51 1417 Move 447 | 62 92 107 186 Hop . | . . . . Pick Up 15 | 13 1 . 1 Fast Attach . | . . . . Attach 14 | 7 . . 7 Detach . | . . . . Swap 2 | 1 . . 1 Drop 1 | . . . 1 Fire 41 | 5 4 . 32 Melee . | . . . . Ram . | . . . . Kick 2 | 1 . . 1 Crush . | . . . . Escape Stasis 6 | . . . 6 Rewire . | . . . . Trap . | . . . . Miscellaneous . | . . . . Route ------- -11/Scrapyard -10/Materials -10/Mines -9/Materials (discovered 2 exits: Mat / Min) History --------- Turn | Location | Event 17 | -11/Scrapyard | Discovered new exit (range 15) 114 | -11/Scrapyard | Entered Materials 289 | -10/Materials | Discovered new exit (range 15) 305 | -10/Materials | Build established: Mutant 318 | -10/Materials | Entered Mines 324 | -10/Mines | Met a Derelict bent on vengeance 352 | -10/Mines | Assisted by bots powering up and referring to "LRC-V3" 372 | -10/Mines | Learned 8 Materials zone layouts 403 | -10/Mines | Assembled infested the area 456 | -10/Mines | Discovered new exit (range 8) 498 | -10/Mines | Entered Materials 498 | -9/Materials | Accompanied by 1 ally 498 | -9/Materials | Evolved 2 slots: Propulsion x1, Utility x1 499 | -9/Materials | Identified exit to Mines 499 | -9/Materials | Identified exit to Materials 790 | -9/Materials | Crushed by falling debris 790 | -9/Materials | System corruption reached 10% 821 | -9/Materials | Lost 3 parts (1p1u1w) 871 | -9/Materials | Crushed by falling debris 874 | -9/Materials | Crushed by falling debris 887 | -9/Materials | Crushed by falling debris 918 | -9/Materials | Lost 5 parts (1p1n1u2w) 1002 | -9/Materials | Crushed by falling debris 1016 | -9/Materials | Crushed by falling debris 1029 | -9/Materials | Crushed by falling debris 1030 | -9/Materials | System corruption reached 30% 1035 | -9/Materials | Crushed by falling debris 1036 | -9/Materials | Core integrity fell below 50% 1037 | -9/Materials | Crushed by falling debris 1068 | -9/Materials | Lost 4 parts (1n1u2w) 2270 | -9/Materials | Self-destructed Last Messages --------------- 01873_ System corrupted: Energy discharge (-40). 01889_ System corrupted: Substantial component data lost. 01924_ V7HXM|Z298VSM4T 01991_ System corrupted: Matter fused (-9). 02009_ RXH8ER1L=DDOB%OND/LD 02042_ System corrupted: Heat flow error (+199). 02062_ System corrupted: Matter fused (-6). 02078_ System corrupted: Energy discharge (-32). 02110_ System corrupted: Heat flow error (+224). 02127_ DTNGQ,#IJMAE C7/ OLZ